Cogmind - Beta 11 @@@ ROGUE MODE // 2022.04.19 @ 21:41:43 Player: aperiodic Result: Destroyed by 1C-UTU with 1C-UTU's Sword "Choppy" Performance ------------- Evolutions (1) 500 Regions Visited (6) 1200 Robots Destroyed (92) 460 Value Destroyed (1718) 1718 Prototype IDs (30) 600 Alien Tech Used (0) 0 Bonus (354) 354 TOTAL SCORE: 4832 Bonus ------- High Alert Combat Kills 54 Aligned with FarCom 300 Cogmind --------- Core Integrity 0/400 Matter 286/300 Energy 93/100 System Corruption 0% Temperature Cool (0) Movement Walking (120) Location -8/Mines Parts ------- > --- POWER (1) -------- (None) > --- PROPULSION (2) --- Advanced Myomer Leg Advanced Myomer Leg > --- UTILITY (4) ------ Heat Sink High-capacity Storage Unit Advanced Weapon Cycler > --- WEAPON (2) ------- 8R-AWN's Boregun > --- INVENTORY (20) --- Makeshift Leg Makeshift Leg Compact Wheel High-capacity Matter Pod (200) Experimental Targeting Computer Improved Armor Integrity Analyzer Advanced Transmission Jammer Advanced Component Analysis Suite System Purifier AS-neutralizer No. 17b Beam Rifle Heavy Assault Rifle Heavy Assault Rifle EMP Blaster Grenade Launcher Rocket Launcher Mining Laser Makeshift Sword Peak State ------------ > --- POWER ------------ Reinforced Fission Core > --- PROPULSION ------- Advanced Myomer Leg Advanced Myomer Leg > --- UTILITY ---------- Heat Sink Experimental Heat Sink High-capacity Storage Unit Advanced Weapon Cycler > --- WEAPON ----------- 8R-AWN's Boregun 8R-AWN's Boregun > --- INVENTORY -------- Makeshift Leg Makeshift Leg Compact Wheel High-capacity Matter Pod Experimental Targeting Computer Improved Armor Integrity Analyzer Advanced Transmission Jammer Advanced Component Analysis Suite System Purifier AS-neutralizer No. 17b Beam Rifle Heavy Assault Rifle Heavy Assault Rifle EMP Blaster Grenade Launcher Rocket Launcher Mining Laser Makeshift Sword [Rating: 65] Favorites ----------- Power Deuterium Engine Engine Deuterium Engine Power Core Reinforced Fission Core Propulsion Light Treads Treads Light Treads Leg Advanced Myomer Leg Wheel Compact Wheel Utility Heat Sink Device Heat Sink Storage Large Storage Unit Protection Light Armor Plating Weapon Light Assault Rifle Energy Gun Particle Gun Ballistic Gun Light Assault Rifle Launcher EMP Blaster Special Weapon Plasma Cutter Slashing Weapon Makeshift Sword Build | -11 -10 -10 -9 -9 -9 -8 ------- Run | Scr Mat Min Mat Min Exi Min Slots Evolved 2 | . . . 2 . . . Power . | . . . . . . . Propulsion . | . . . . . . . Utility 2 | . . . 2 . . . Weapon . | . . . . . . . Parts Attached 80 | 8 12 4 23 . 29 4 Power 5 | 1 1 . 2 . 1 . Engine 4 | 1 1 . 2 . . . Core 1 | . . . . . 1 . Reactor . | . . . . . . . Propulsion 20 | 2 1 2 5 . 8 2 Treads 13 | 2 1 2 5 . 3 . Leg 5 | . . . . . 3 2 Wheel 2 | . . . . . 2 . Hover . | . . . . . . . Flight . | . . . . . . . Utility 22 | 3 2 1 7 . 9 . Device 11 | 2 1 . 2 . 6 . Storage 4 | 1 1 . . . 2 . Processor . | . . . . . . . Hackware . | . . . . . . . Protection 7 | . . 1 5 . 1 . Artifact . | . . . . . . . Weapon 33 | 2 8 1 9 . 11 2 Energy Gun 3 | . 2 1 . . . . Energy Cannon . | . . . . . . . Ballistic Gun 22 | 2 4 . 7 . 7 2 Ballistic Cannon . | . . . . . . . Launcher 6 | . 2 . 2 . 2 . Special Weapon 1 | . . . . . 1 . Impact Weapon . | . . . . . . . Slashing Weapon 1 | . . . . . 1 . Piercing Weapon . | . . . . . . . Special Melee Weapon . | . . . . . . . Unidentified Prototypes 5 | . . . . . 5 . Parts Lost 22 | . 4 2 6 . 7 3 Power 4 | . 1 . 1 . 1 1 Propulsion 3 | . . 1 . . 2 . Utility 9 | . 1 . 4 . 3 1 Weapon 6 | . 2 1 1 . 1 1 Highest Loss Streak 4 | . 3 1 2 . 4 3 To Critical Strikes 2 | . . . . . 2 . Average Slot Usage (%) 97 | . 99 99 94 100 95 100 Engine 9 | . 14 14 10 11 4 . Core 2 | . . . . . 6 11 Treads 20 | . 28 28 22 22 12 . Leg 1 | . . . . . 4 20 Wheel 1 | . . . . . 4 1 Device 17 | . 13 11 8 22 24 33 Storage 12 | . 14 14 11 11 11 11 Protection 7 | . . 2 20 11 5 . Energy Gun 3 | . 5 13 1 . . . Ballistic Gun 20 | . 22 14 20 22 19 22 Naked Turns . | . . . . . . . Heaviest Build 80 | 12 30 32 40 36 80 75 Greatest Support 60 | 40 40 40 40 40 60 60 Greatest Overweight (x) 4 | . . . . . 4 4 Average Overweight (x) . | . . . . . 2 1 Largest Inventory Capacity 25 | 8 15 15 15 15 25 20 Average Capacity 15 | 7 13 15 15 15 19 20 Most Carried 20 | 4 12 15 15 15 20 18 Average Carried 13 | 2 8 13 14 14 16 17 Final Capacity 20 | 8 15 15 15 15 20 20 Final Carried 18 | 4 12 14 15 15 18 18 Class Distribution -------------------- 57% | Scavenger-Mutant 42% | Mutant Dominant Class ---------------- Mutant | -10/Materials Mutant | -10/Mines Scavenger-Mutant | -9/Materials Scavenger-Mutant | -9/Mines Scavenger-Mutant | -9/Exiles Scavenger-Mutant | -8/Mines Resources | -11 -10 -10 -9 -9 -9 -8 ----------- Run | Scr Mat Min Mat Min Exi Min Matter Collected 2403 | 392 277 142 582 25 909 76 Remotely . | . . . . . . . Salvage Created 2883 | 225 618 162 1195 8 517 158 Parts 251 | 30 41 14 92 1 63 10 Haulers Intercepted 3 | . 2 . 1 . . . Recyclers Shooed 4 | . 2 . 1 1 . . Parts Field Recycled . | . . . . . . . Retrieved Matter . | . . . . . . . Parts Self-Destructed . | . . . . . . . Prevented . | . . . . . . . Kills | -11 -10 -10 -9 -9 -9 -8 ------- Run | Scr Mat Min Mat Min Exi Min Combat Hostiles Destroyed 60 | . 14 7 31 . 4 4 Melee 1 | . . . . . 1 . Guns 46 | . 10 7 25 . . 4 AOE 13 | . 4 . 6 . 3 . Classes Destroyed 14 | 3 5 . 3 . 3 . Worker 3 | 2 . . 1 . . . Builder 2 | . . . 2 . . . Tunneler 10 | 8 . 1 . 1 . . Hauler 3 | . 2 . 1 . . . Recycler 3 | 1 . . 1 . . 1 Operator 1 | . 1 . . . . . Turret 1 | . . . . . 1 . Watcher 2 | . 1 . 1 . . . Swarmer 23 | . 3 5 11 . . 4 Grunt 26 | . 11 2 13 . . . Brawler 1 | . . . 1 . . . Sentry 6 | . . . 6 . . . Zionite 8 | . . . . . 8 . Assembled 3 | . . . . . 3 . Best Kill Streak 8 | 4 3 4 8 1 8 5 Combat Bots Only 8 | . 3 4 8 . 3 4 Max Kills in Single Turn 3 | 1 2 1 3 1 1 3 Gunslinging 1 | . . . 1 . . . Exploded 2 | . 2 . 2 . 1 . Melee 1 | . . . . . 1 . Uniques/NPCs Destroyed 4 | . . . . . 4 . 8R-AWN (-9/Exiles) EX-DEC (-9/Exiles) EX-HEX (-9/Exiles) EX-BIN (-9/Exiles) Combat | -11 -10 -10 -9 -9 -9 -8 -------- Run | Scr Mat Min Mat Min Exi Min Damage Taken 3649 | . 573 182 1248 . 1034 612 Core 552 | . 114 20 172 . 131 115 Absorbed by Shields . | . . . . . . . Core Remaining (%) 73 | 100 . 46 . . . . Volleys Fired 296 | 28 78 23 107 . 54 6 Largest 2 | 2 2 2 2 . 2 2 Hottest 85 | 40 85 85 60 . 60 60 Shots Fired 552 | 56 149 43 208 . 86 10 Gun 525 | 56 146 43 202 . 68 10 Cannon . | . . . . . . . Launcher 20 | . 3 . 6 . 11 . Special 7 | . . . . . 7 . Kinetic 475 | 56 134 23 184 . 68 10 Thermal 57 | . 12 20 18 . 7 . Explosive 9 | . 3 . 6 . . . Electromagnetic 11 | . . . . . 11 . Robot Hit Streak 18 | 8 12 11 18 . 5 7 Robot Miss Streak 5 | 2 5 3 4 . 5 1 Penetration Max 2 | . . . . . 2 2 Secondary Targets 3 | . . 1 2 . . . Max Gunslinging Chain 1 | . . 1 1 . . . Shots Hit Robots 398 | 36 94 27 156 . 77 8 Core Hits 158 | 15 38 12 61 . 27 5 Critical Kills 10 | 1 . . . . 5 4 Critical Parts Destroyed 20 | . . . . . 15 5 Critical Strikes 34 | 1 1 . . . 23 9 Burn 1 | . 1 . . . . . Destroy 31 | 1 . . . . 21 9 Sever 2 | . . . . . 2 . Melee Attacks 47 | . . . . . 47 . Impact . | . . . . . . . Slashing 47 | . . . . . 47 . Piercing . | . . . . . . . Sneak Attacks . | . . . . . . . Combat Hostiles . | . . . . . . . Follow-up Attacks . | . . . . . . . Damage Inflicted 6541 | 375 1147 303 2222 20 2236 238 Guns 4123 | 375 950 303 1646 . 611 238 Cannons . | . . . . . . . Explosions 926 | . 197 . 562 . 167 . Melee 1453 | . . . . . 1453 . Ramming 34 | . . . 14 20 . . Kinetic 3707 | 375 877 115 1491 . 611 238 Thermal 449 | . 101 188 155 . 5 . Explosive 731 | . 169 . 562 . . . Electromagnetic 167 | . . . . . 167 . Impact . | . . . . . . . Slashing 1453 | . . . . . 1453 . Piercing . | . . . . . . . Highest Corruption 1 | . . . 1 1 1 . Average Corruption 1 | . . . 1 1 1 . Corruption Purged 1 | . . . . . 1 . Corruption Blocked . | . . . . . . . Effects 20 | . . . 2 7 11 . Message Errors 4 | . . . . 3 1 . Matter Fused 6 | . . . . 3 3 . Heat Flow Errors 1 | . . . . . 1 . Energy Discharges 3 | . . . 1 . 2 . Data Loss (minor) 5 | . . . 1 1 3 . Misfires 1 | . . . . . 1 . Overload Shots . | . . . . . . . Overflow Damage 8 | . . . 3 . 5 . Projectiles . | . . . . . . . Explosions 3 | . . . 3 . . . Melee 5 | . . . . . 5 . Knockbacks 1 | . . . . 1 . . Impact 1 | . . . . 1 . . Kinetic . | . . . . . . . Secondary . | . . . . . . . Self-Inflicted Damage . | . . . . . . . Shots . | . . . . . . . Rammed 6 | . . . 2 4 . . Targets Rammed 8 | . . . 3 5 . . Kicked . | . . . . . . . Crushed 2 | . . . 1 1 . . Highest Temperature 230 | . 32 53 230 . 63 . Average Temperature 42 | . 9 18 64 . 44 . Received Heat Transfer 705 | . 276 30 399 . . . Siege Activations . | . . . . . . . Robots Corrupted . | . . . . . . . Combat Hostiles . | . . . . . . . Parts Fried . | . . . . . . . Impact Corruptions . | . . . . . . . Robots Melted . | . . . . . . . Combat Hostiles . | . . . . . . . Parts Melted 1 | . . . 1 . . . Heat Transferred 1148 | . 309 444 350 . 45 . Parts Sabotaged . | . . . . . . . Parts Stolen . | . . . . . . . Parts Stripped . | . . . . . . . Power Chain Reactions . | . . . . . . . Missiles Intercepted . | . . . . . . . Alert | -11 -10 -10 -9 -9 -9 -8 ------- Run | Scr Mat Min Mat Min Exi Min Peak Influence 601 | 55 246 268 601 195 . 95 Initial 190 | . 35 78 7 190 . . Average 121 | 24 132 107 190 77 . 49 Maximum Alert Level 2 | . 1 1 2 . . . Low Security (%) 80 | 100 78 70 67 100 . 100 Level 1 16 | . 21 29 21 . . . Level 2 2 | . . . 11 . . . Level 3 . | . . . . . . . Level 4 . | . . . . . . . Level 5 . | . . . . . . . High Security . | . . . . . . . Max Security . | . . . . . . . Squads Dispatched 9 | . 3 . 6 . . . Investigation 4 | . 2 . 2 . . . Extermination . | . . . . . . . Reinforcement 4 | . 1 . 3 . . . Assault 1 | . . . 1 . . . Garrison . | . . . . . . . Intercept . | . . . . . . . Searches Triggered . | . . . . . . . Construction Impeded . | . . . . . . . Haulers Reinforced . | . . . . . . . Active Scanning Responses . | . . . . . . . Cargo Convoy Interrupts . | . . . . . . . Stealth | -11 -10 -10 -9 -9 -9 -8 --------- Run | Scr Mat Min Mat Min Exi Min Distress Signals 7 | . 4 . 3 . . . Communications Jammed . | . . . . . . . Distress Signals . | . . . . . . . Times Spotted 115 | . 36 9 50 . 15 5 Peak Tracking Total 9 | . 3 3 8 . 9 5 Tactical Retreats 7 | . 1 2 2 . 2 . Traps | -11 -10 -10 -9 -9 -9 -8 ------- Run | Scr Mat Min Mat Min Exi Min Traps Triggered 3 | . 2 . 1 . . . Indirectly . | . . . . . . . Trap Hack Attempts . | . . . . . . . Triggered . | . . . . . . . Disarmed . | . . . . . . . Reprogrammed . | . . . . . . . Reused . | . . . . . . . Traps Extracted . | . . . . . . . Installed . | . . . . . . . Triggered . | . . . . . . . Exploded 3 | . . . . . 3 . Machines | -11 -10 -10 -9 -9 -9 -8 ---------- Run | Scr Mat Min Mat Min Exi Min Machines Disabled 13 | . 2 . . . 11 . Max in Single Turn 3 | . 1 . . . 3 . Machines Sabotaged . | . . . . . . . Garrisons Compromised . | . . . . . . . Overloaded Fab Kills . | . . . . . . . Hacking | -11 -10 -10 -9 -9 -9 -8 --------- Run | Scr Mat Min Mat Min Exi Min Machines Accessed 17 | . 6 . 8 1 2 . Terminals 15 | . 6 . 8 1 . . Fabricators . | . . . . . . . Repair Stations . | . . . . . . . Recycling Units . | . . . . . . . Scanalyzers . | . . . . . . . Garrison Access . | . . . . . . . Total Hacks 45 | . 14 . 26 3 2 . Successful 17 | . 5 . 9 1 2 . Failed 27 | . 8 . 17 2 . . Catastrophic 2 | . . . 2 . . . Database Lockouts 1 | . 1 . . . . . Manual 35 | . 12 . 19 3 1 . Terminals 43 | . 14 . 26 3 . . Fabricators . | . . . . . . . Repair Stations . | . . . . . . . Recycling Units . | . . . . . . . Scanalyzers . | . . . . . . . Garrison Access . | . . . . . . . Terminal Hacks 13 | . 3 . 7 1 2 . Record 1 | . . . . . 1 . Robot Analysis 2 | . 1 . 1 . . . Prototype ID Bank 1 | . . . 1 . . . Terminal Index 1 | . 1 . . . . . Alert Level 3 | . . . 2 1 . . Locate Traps 3 | . 1 . 2 . . . Hauler Manifests 1 | . . . 1 . . . EX-Prototype ID Bank 1 | . . . . . 1 . Fabricator Hacks . | . . . . . . . Repair Station Hacks . | . . . . . . . Recycling Unit Hacks . | . . . . . . . Scanalyzer . | . . . . . . . Garrison Access Hacks . | . . . . . . . Unauthorized Hacks 4 | . 2 . 2 . . . Terminals 4 | . 2 . 2 . . . Assimilate 1 | . 1 . . . . . Botnet 1 | . . . 1 . . . Operators 2 | . 1 . 1 . . . Fabricators . | . . . . . . . Repair Stations . | . . . . . . . Recycling Units . | . . . . . . . Scanalyzers . | . . . . . . . Garrison Access . | . . . . . . . Data Cores Recovered . | . . . . . . . Used . | . . . . . . . Hacking Detections 14 | . 6 . 8 . . . Full Trace Events 2 | . 1 . 1 . . . Feedback Events 1 | . . . 1 . . . Corruption 1 | . . . 1 . . . Feedback Blocked . | . . . . . . . Robot Schematics Acquired . | . . . . . . . Robots Built . | . . . . . . . Authchips . | . . . . . . . Time . | . . . . . . . Total Robot Build Rating . | . . . . . . . Part Schematics Acquired . | . . . . . . . Parts Built . | . . . . . . . Authchips . | . . . . . . . Time . | . . . . . . . Total Part Build Rating . | . . . . . . . Parts Repaired . | . . . . . . . Time . | . . . . . . . Parts Recycled . | . . . . . . . Recycled Matter . | . . . . . . . Retrieved Matter . | . . . . . . . Retrieved Components . | . . . . . . . Parts Scanalyzed . | . . . . . . . Part Schematics Acquired . | . . . . . . . Parts Damaged . | . . . . . . . Bothacking | -11 -10 -10 -9 -9 -9 -8 ------------ Run | Scr Mat Min Mat Min Exi Min Used RIF Installer . | . . . . . . . Robots Hacked . | . . . . . . . Non-combat . | . . . . . . . Combat . | . . . . . . . Robot Hacks Applied . | . . . . . . . Relay Couplers Released . | . . . . . . . Fabnet Peak Effective % . | . . . . . . . Robots Rewired . | . . . . . . . Allies Hacked . | . . . . . . . Hacks Repelled . | . . . . . . . Allies | -11 -10 -10 -9 -9 -9 -8 -------- Run | Scr Mat Min Mat Min Exi Min Total Allies 4 | . 1 . . 3 . . Largest Group 3 | . 1 1 1 3 3 . Highest-Rated Group 40 | . 10 10 10 40 40 . Highest-Rated Ally 16 | . 10 10 10 16 16 . Total Orders 3 | . . 2 . . 1 . STAY 2 | . . 1 . . 1 . FOLLOW 1 | . . 1 . . . . Ally Attacks 5 | . . . . . 5 . Total Damage 59 | . . . . . 59 . Kills . | . . . . . . . Allies Corrupted . | . . . . . . . Allies Melted . | . . . . . . . Intel | -11 -10 -10 -9 -9 -9 -8 ------- Run | Scr Mat Min Mat Min Exi Min Robot Analysis Total 2 | . 1 . 1 . . . Derelict Logs Recovered 5 | . . 3 . 2 . . Drone Launches . | . . . . . . . Drone Recoveries . | . . . . . . . Exploration | -11 -10 -10 -9 -9 -9 -8 ------------- Run | Scr Mat Min Mat Min Exi Min Turns Passed 7758 | 385 1502 1007 1221 997 2558 88 Spaces Moved 3741 | 183 654 570 481 608 1219 26 Core 2 | 2 . . . . . . Treads 2940 | 181 654 570 481 608 446 . Legs 210 | . . . . . 189 21 Wheels 589 | . . . . . 584 5 Hover . | . . . . . . . Flight . | . . . . . . . Fastest Speed 50 | 50 160 160 160 160 130 160 Average Speed 166 | 158 160 160 160 160 179 184 Slowest Speed 260 | 160 160 160 160 160 260 190 Overloaded Moves . | . . . . . . . Propulsion Burnouts . | . . . . . . . Robots Hopped . | . . . . . . . Cave-ins Triggered . | . . . . . . . Exploration Rate (%) 62 | 8 90 94 52 96 90 7 Regions Visited 6 Branch Regions 4 Pre-discovered Areas 4 | . . 1 . 2 1 . Known Exits Taken 1 | . . . 1 . . . Unknown Exits Taken 5 | 1 1 1 . 1 1 . Scrap Searched 3 | . . 1 . 2 . . Spaces Dug . | . . . . . . . Terrain Destroyed 76 | . 17 . 52 . 4 3 Melee . | . . . . . . . Projectile 6 | . . . . . 3 3 AOE 69 | . 17 . 52 . . . Terrain Rammed . | . . . . . . . Walls Destroyed . | . . . . . . . Machines Disabled . | . . . . . . . Actions | -11 -10 -10 -9 -9 -9 -8 --------- Run | Scr Mat Min Mat Min Exi Min Total 4737 | 224 973 626 748 632 1475 59 Wait 483 | 1 218 26 116 14 87 21 Move 3735 | 182 653 569 480 607 1218 26 Hop . | . . . . . . . Pick Up 49 | 4 11 3 7 3 20 1 Fast Attach 26 | 7 3 1 7 . 8 . Attach 12 | . 3 2 2 . 5 . Detach . | . . . . . . . Swap 42 | 1 6 1 14 . 16 4 Drop 39 | 1 1 1 12 3 20 1 Fire 296 | 28 78 23 107 . 54 6 Melee 47 | . . . . . 47 . Ram . | . . . . . . . Kick . | . . . . . . . Crush 8 | . . . 3 5 . . Escape Stasis . | . . . . . . . Rewire . | . . . . . . . Trap . | . . . . . . . Miscellaneous . | . . . . . . . Route ------- -11/Scrapyard -10/Materials (discovered 4 exits: *Mat x3 / [*Min]) -10/Mines (discovered 2 exits: *Mat x2) -9/Materials (discovered 3 exits: [*Mat] / *Min x2) -9/Mines (discovered 3 exits: [*Mat x2] / *Exi) -9/Exiles (discovered 2 exits: [*Min x2]) -8/Mines (discovered 1 exit: [*Mat]) History --------- Turn | Location | Event 71 | -11/Scrapyard | Discovered new exit (range 16) 386 | -11/Scrapyard | Entered Materials 387 | -10/Materials | Build established: Mutant 762 | -10/Materials | Discovered new exit (range 15) 951 | -10/Materials | Discovered new exit (range 5) 1327 | -10/Materials | Lost 3 parts (1p1u1w) 1470 | -10/Materials | Discovered new exit (range 16) 1705 | -10/Materials | Central database locked down 1813 | -10/Materials | Discovered new exit (range 12) 1888 | -10/Materials | Entered Mines 1888 | -10/Mines | Accompanied by 1 ally 1940 | -10/Mines | Discovered new exit (range 8) 1970 | -10/Mines | Core integrity fell below 50% 2100 | -10/Mines | Received a Rocket Launcher from a helpful Derelict 2145 | -10/Mines | Discovered new exit (range 5) 2295 | -10/Mines | Learned location of Zion (-6) 2631 | -10/Mines | Learned Materials terminal intel 2691 | -10/Mines | Joined a pair of Derelicts in attacking an 0b10 outpost 2895 | -10/Mines | Entered Materials 2895 | -9/Materials | Accompanied by 1 ally 2895 | -9/Materials | Evolved 2 slots: Utility x2 2896 | -9/Materials | Identified exit to Mines 2897 | -9/Materials | Loaded intel: 11 terminal locations 3348 | -9/Materials | Build established: Scavenger-Mutant 3594 | -9/Materials | Discovered new exit (range 10) 4074 | -9/Materials | Destroyed 8 combat bots 4095 | -9/Materials | First assault squad dispatched 4116 | -9/Materials | Entered Mines 4124 | -9/Mines | Assisted by bots powering up and referring to "LRC-V3" 4179 | -9/Mines | Deemed a non-threat by the Exiles lab entrance 4179 | -9/Mines | Discovered new exit (range 5) 4212 | -9/Mines | Discovered new exit (range 5) 4424 | -9/Mines | Discovered new exit (range 6) 4480 | -9/Mines | Learned location of Storage (-9) 4558 | -9/Mines | A weapon hastily lodged in a ceiling crevice suddenly fell to the ground 5113 | -9/Mines | Entered Exiles 5113 | -9/Exiles | Accompanied by 3 allies 5134 | -9/Exiles | Discovered new exit (range 15) 5157 | -9/Exiles | Met 8R-AWN 5176 | -9/Exiles | Met EX-HEX 5277 | -9/Exiles | Met EX-DEC 5493 | -9/Exiles | Met EX-BIN 5513 | -9/Exiles | Aligned with FarCom system 5514 | -9/Exiles | Given EX-Vault access code 5549 | -9/Exiles | Opened EX-Vault 5556 | -9/Exiles | Found Trap Reconfigurator 5563 | -9/Exiles | Found Modified TNC 5571 | -9/Exiles | Found Chronowheel 5604 | -9/Exiles | Warned to stay clear of 0b10 Research branches 6036 | -9/Exiles | Attacked by the Exiles 6141 | -9/Exiles | Core integrity fell below 50% 6183 | -9/Exiles | Found Prototype Device 6183 | -9/Exiles | Identified AS-neutralizer No. 17b 6198 | -9/Exiles | Lost 4 parts (1p2u1w) 6257 | -9/Exiles | Destroyed 8R-AWN 6262 | -9/Exiles | Found Prototype Ballistic Gun 6262 | -9/Exiles | Identified 8R-AWN's Boregun 6305 | -9/Exiles | Found 8R-AWN's Boregun 6519 | -9/Exiles | Destroyed EX-DEC 6593 | -9/Exiles | Destroyed EX-HEX 6614 | -9/Exiles | Destroyed EX-BIN 6674 | -9/Exiles | Found Prototype Device 6674 | -9/Exiles | Identified System Purifier 6989 | -9/Exiles | Found Prototype Processor 7341 | -9/Exiles | Discovered new exit (range 12) 7671 | -9/Exiles | Entered Mines 7712 | -8/Mines | Core integrity fell below 20% 7718 | -8/Mines | Discovered new exit (range 8) 7752 | -8/Mines | 1C-UTU came to Exiles' defense 7759 | -8/Mines | Destroyed by 1C-UTU with 1C-UTU's Sword "Choppy" Last Messages --------------- 07752_ 1C-UTU: "I came as fast as I could... Wait, it was you!" 07752_ K-01 Serf collects debris. 07755_ Rnf. Fission Core destroyed. 07755_ 1C-UTU follow-up attacks with Prototype Slashing Weapon. 07755_ HV Slug penetrates 1C-UTU. 07755_ 1C-UTU suffers critical hit (Destroy). 07755_ Destroyed Prototype Leg. 07755_ HV Slug penetrates Wall. 07756_ 1C-UTU follow-up attacks with Prototype Slashing Weapon. 07756_ 8R-AWN's Boregun destroyed. 07756_ K-01 Serf collects debris. 07757_ 1C-UTU follow-up attacks with Prototype Slashing Weapon. 07757_ HV Slug penetrates 1C-UTU. 07757_ HV Slug penetrates Earth. 07758_ Exp. Heat Sink destroyed. 07758_ 1C-UTU follow-up attacks with Prototype Slashing Weapon. 07758_ HV Slug penetrates 1C-UTU. 07758_ 1C-UTU suffers critical hit (Destroy). 07758_ Destroyed Prototype Leg. 07758_ HV Slug penetrates Earth. Map ----- +----------------------------------------------------+ | | | | | | | | | ???????????????????????????????? | | ???????????????????????????????? | | ????????????????#########??????? | | ????????????????# #??????? | | ????????????????# """ #??????? | | ????????????????# """ #??????? | | ????????????????# """ #??????? | | ????????????????# #??????? | | ????????????????# #??????? | | ????????????????# ####???? | | ????????????????# =*#???? | | ????????????????# ## #???? | | ????????????????##########=#???? | | ?????????????????????????#%#???? | | ??????????????????????####*###?? | | ??????????????????????# ==[* #?? | | ??????????????????????# [* #?? | | ??????????????????????# #?? | | ??????????????????????# #?? | | ??????????????????????# < #?? | | ??????????????????????# k% #?? | | ??????????????????????# @ #?? | | ??????????????????????# l #?? | | ??????????????????????##### #?? | | ??????????????????????????? #?? | | ??????????????????????????? ;?? | | ??????????????????????????? # ? | | ??????????????????????????? #?# | | ??????????????????????????? ?? | | ??????????????????????????? ?? | | ??????????????????????????? #? | | ???????????????????????????? ##? | | ????????????????????????????##?? | | ???????????????????????????????? | | ???????????????????????????????? | | ???????????????????????????????? | | ???????????????????????????????? | | ???????????????????????????????? | | ???????????????????????????????? | | ???????????????????????????????? | | ???????????????????????????????? | | ???????????????????????????????? | | ???????????????????????????????? | | ???????????????????????????????? | | ???????????????????????????????? | | ???????????????????????????????? | +----------------------------------------------------+ Best States ------------- Heat Dissipation 64 Energy Generation 19 Energy Capacity 310 Matter Stores 300 Matter Capacity 300 Sight Range 16 Terrain Scan Density 10 Armor Coverage 450 Weapon Cycling 25 Evasion (%) 40 Recoil Reduction 2 Item Schematics ----------------- None Robot Schematics ------------------ None Fabricated ------------ Nothing Alien Tech Used ----------------- None Achievements -------------- None Challenges ------------ None Game ------ Seed MetafieldTargetingTreads Manual? 0 Play Time 00:49:16 Cumulative 518.0 hours Start 2022.04.19 @ 20:53:09 End 2022.04.19 @ 21:41:43 Sessions 1 Manual Loads 0 Difficulty Rogue Special Mode None Game No. 163 Rogue 159 Adventurer 4 Explorer 0 Win Type - Total 13 Types 6/2/3/0/0/0/1/1/0 Lore% 82 Gallery% 86 Achievement% 73 Wizard Run 0 Options --------- ASCII 1 Keyboard 0 Movement Arrows Keybinds 0 Fullscreen 1 Font 18/SmallcapsGlow Map View 76x50 Tactical HUD 1 Map Filters NONE Filters NONE Steam 1 RUN: f1658994-9bea-448a-949a-d156012e77e1